{"text_format":"1","workbook":"xlsx","n_sheets":5,"sheets":["How To Use This Tool","Enter Company Names","CSRHub Ratings","SDG Score Overview","SDG Mapping"],"not_rendered":{"charts":0,"images":6,"macros":1,"external_links":0,"defined_names":37,"comments":1,"pivot_tables":0},"unopened":[],"bounds":{"document_bytes":16777216,"sheet_cells":100000,"rows_first":2000,"rows_last":500,"rows_between":2000,"halvings":0,"cell_chars":16384,"cell_head_chars":4096},"cells_cut":0,"cells_raw":0,"read":"whole","date_system":"1900"}

{"sheet":"How To Use This Tool","index":0,"n_rows":59,"n_cols":14,"rows_kept":59,"cut":false,"hidden":false,"merged":[[5,8,5,9],[7,8,7,13],[52,0,56,6],[58,0,58,7],[29,0,29,6],[25,0,25,2],[26,0,26,6],[33,0,33,6],[34,0,41,6],[43,0,43,1],[28,0,28,3],[19,0,19,3],[20,0,20,5],[5,0,5,5],[7,0,7,1],[44,0,46,6],[8,0,8,6],[13,0,13,5],[14,0,14,6]]}
[]
[]
[]
[]
[]
["How to Use the CSRHub SDG Calculator",null,null,null,null,null,null,null,"SDG Materiality Threshold Control"]
[null,null,null,null,null,null,null,null,"Customize your SDG Materiality Level",0.85]
["Background",null,null,null,null,null,null,null,"SDG Compliance Results"]
["SDG stands for Sustainable Development Goals. These are a set of 17 global goals adopted by the United Nations in 2015 as a universal call to action to end poverty, protect the planet, and ensure peace and prosperity for all by 2030, according to the UNDP and the World Health Organization. The 17 SDGs are integrated; they recognize that action in one area will affect outcomes in others, and that development must balance social, economic and environmental sustainability.",null,null,null,null,null,null,null,"Company Name",{"$f":"'SDG Score Overview'!B14","v":"End poverty in all its forms everywhere"},{"$f":"'SDG Score Overview'!C14","v":"End hunger, achieve food security and improved nutrition and promote sustainable agriculture"},{"$f":"'SDG Score Overview'!D14","v":"Ensure healthy lives and promote well-being for all at all ages"},{"$f":"'SDG Score Overview'!E14","v":"Ensure inclusive and equitable quality education and promote lifelong learning opportunities for all"},{"$f":"'SDG Score Overview'!F14","v":"Achieve gender equality and empower all women and girls"}]
[null,null,null,null,null,null,null,null,{"$f":"'SDG Score Overview'!A15","v":"American Well Corp"},{"$f":"'SDG Score Overview'!B15","v":48.442857142857136},{"$f":"'SDG Score Overview'!C15","v":51.456000000000003},{"$f":"'SDG Score Overview'!D15","v":49.11333333333333},{"$f":"'SDG Score Overview'!E15","v":45.555},{"$f":"'SDG Score Overview'!F15","v":48.191666666666663}]
[null,null,null,null,null,null,null,null,"Comparator Average",{"$f":"'SDG Score Overview'!B10","v":54.628392857142849},{"$f":"'SDG Score Overview'!C10","v":57.060875000000003},{"$f":"'SDG Score Overview'!D10","v":55.897499999999994},{"$f":"'SDG Score Overview'!E10","v":54.100000000000009},{"$f":"'SDG Score Overview'!F10","v":54.910208333333337}]
[null,null,null,null,null,null,null,null,"Materiality Test",{"$f":"IF(J10<J11*$J$7,\"Below\",\"Pass\")","v":"Pass"},{"$f":"IF(K10<K11*$J$7,\"Below\",\"Pass\")","v":"Pass"},{"$f":"IF(L10<L11*$J$7,\"Below\",\"Pass\")","v":"Pass"},{"$f":"IF(M10<M11*$J$7,\"Below\",\"Pass\")","v":"Below"},{"$f":"IF(N10<N11*$J$7,\"Below\",\"Pass\")","v":"Pass"}]
[]
["17 Areas of Focus Have Been Mapped to ESG Topics"]
["The SDG framework defines 17 priority areas for sustainable development, underpinned by a detailed set of targets and indicators for assessing progress. We have mapped the top 17 areas to the 12 sustainability-related topics that CSRHub rates. This mapping is shown on the SDG Mapping tab.",null,null,null,null,null,null,null,"Company Name",{"$f":"'SDG Score Overview'!G14","v":"Ensure availability and sustainable management of water and sanitation for all"},{"$f":"'SDG Score Overview'!H14","v":"Ensure access to affordable, reliable, sustainable and modern energy for all"},{"$f":"'SDG Score Overview'!I14","v":"Promote sustained, inclusive and sustainable economic growth, full and productive employment and decent work for all"},{"$f":"'SDG Score Overview'!J14","v":"Build resilient infrastructure, promote inclusive and sustainable industrialization and foster innovation"},{"$f":"'SDG Score Overview'!K14","v":"Reduce inequality within and among countries"}]
["","","","","","","","",{"$f":"'SDG Score Overview'!A15","v":"American Well Corp"},{"$f":"'SDG Score Overview'!G15","v":50.91},{"$f":"'SDG Score Overview'!H15","v":43.865000000000002},{"$f":"'SDG Score Overview'!I15","v":44.398000000000003},{"$f":"'SDG Score Overview'!J15","v":46.628750000000004},{"$f":"'SDG Score Overview'!K15","v":48.477142857142852}]
["","","","","","","","","Comparator Average",{"$f":"'SDG Score Overview'!G10","v":56.342187500000001},{"$f":"'SDG Score Overview'!H10","v":57.090937499999995},{"$f":"'SDG Score Overview'!I10","v":53.809250000000006},{"$f":"'SDG Score Overview'!J10","v":57.407265625000001},{"$f":"'SDG Score Overview'!K10","v":54.786071428571432}]
["","","","","","","","","Materiality Test",{"$f":"IF(J16<J17*$J$7,\"Below\",\"Pass\")","v":"Pass"},{"$f":"IF(K16<K17*$J$7,\"Below\",\"Pass\")","v":"Below"},{"$f":"IF(L16<L17*$J$7,\"Below\",\"Pass\")","v":"Below"},{"$f":"IF(M16<M17*$J$7,\"Below\",\"Pass\")","v":"Below"},{"$f":"IF(N16<N17*$J$7,\"Below\",\"Pass\")","v":"Pass"}]
[]
["The Enter Company Names Tab"]
["This tab is the starting point. It allows you search the names of the companies you wish to evaluate. Please enter in the date of data you are wanting to evaluate. You can verify the company name in column J. The instructions for matching the correct entity and date can be found in cells A4-A10.",null,null,null,null,null,null,null,"Company Name",{"$f":"'SDG Score Overview'!L14","v":"Make cities and human settlements inclusive, safe, resilient and sustainable"},{"$f":"'SDG Score Overview'!M14","v":"Ensure sustainable consumption and production patterns"},{"$f":"'SDG Score Overview'!N14","v":"Take urgent action to combat climate change and its impacts"},{"$f":"'SDG Score Overview'!O14","v":"Conserve and sustainably use the oceans, seas and marine resources for sustainable development"},{"$f":"'SDG Score Overview'!P14","v":"Protect, restore and promote sustainable use of terrestrial ecosystems, sustainably manage forests, combat desertification, and halt and reverse land degradation and halt biodiversity loss"}]
["","","","","","","","",{"$f":"'SDG Score Overview'!A15","v":"American Well Corp"},{"$f":"'SDG Score Overview'!L15","v":48.136666666666663},{"$f":"'SDG Score Overview'!M15","v":50.4375},{"$f":"'SDG Score Overview'!N15","v":46.16},{"$f":"'SDG Score Overview'!O15","v":50.222500000000004},{"$f":"'SDG Score Overview'!P15","v":50.754000000000005}]
["","","","","","","","","Comparator Average",{"$f":"'SDG Score Overview'!L10","v":56.833541666666669},{"$f":"'SDG Score Overview'!M10","v":58.265156250000011},{"$f":"'SDG Score Overview'!N10","v":56.632767857142866},{"$f":"'SDG Score Overview'!O10","v":57.935937500000001},{"$f":"'SDG Score Overview'!P10","v":57.291250000000005}]
[null,null,null,null,"","","","","Materiality Test",{"$f":"IF(J22<J23*$J$7,\"Below\",\"Pass\")","v":"Below"},{"$f":"IF(K22<K23*$J$7,\"Below\",\"Pass\")","v":"Pass"},{"$f":"IF(L22<L23*$J$7,\"Below\",\"Pass\")","v":"Below"},{"$f":"IF(M22<M23*$J$7,\"Below\",\"Pass\")","v":"Pass"},{"$f":"IF(N22<N23*$J$7,\"Below\",\"Pass\")","v":"Pass"}]
[]
["The CSRHub Ratings Tab"]
["Confirm the date is correct and that it pulled from the Enter Company Names tab when you click \"Calculate.\" The \"focus company\" is the top and the \"comparators\" are below it. The comparators average, best and worst ratings are listed at the top of the sheet. The focus company is excluded.",null,null,null,null,null,null,null,"Company Name",{"$f":"'SDG Score Overview'!Q14","v":"Promote peaceful and inclusive societies for sustainable development, provide access to justice for all and build effective, accountable and inclusive institutions at all levels"},{"$f":"'SDG Score Overview'!R14","v":"Strengthen the means of implementation and revitalize the global partnership for sustainable development"}]
["","","","","","","","",{"$f":"'SDG Score Overview'!A15","v":"American Well Corp"},{"$f":"'SDG Score Overview'!Q15","v":47.831666666666663},{"$f":"'SDG Score Overview'!R15","v":48.336000000000006}]
["The SDG Score Overview Tab",null,null,null,"","","","","Comparator Average",{"$f":"'SDG Score Overview'!Q10","v":54.807083333333324},{"$f":"'SDG Score Overview'!R10","v":56.190750000000008}]
["This tab contains an estimate of the relative performance for the studied companies across the 17 SDG focus areas. The \"focus company\" is the top and the \"comparators\" are below it. The average, best, and worst ratings numbers at the top of the sheet reference the comparators. The focus company is excluded.",null,null,null,null,null,null,"","Materiality Test",{"$f":"IF(J28<J29*$J$7,\"Below\",\"Pass\")","v":"Pass"},{"$f":"IF(K28<K29*$J$7,\"Below\",\"Pass\")","v":"Pass"}]
[]
[]
[]
["Set Your threshold for Materiality and Use the Tool"]
["To the right at the top of this page is a cell to \"Customize your SDG Materiality Level\" for this tool. If you want to test if the focus company is in line with the average for its comparators, set the threshold at 100%. If you would accept the focus company being a certain percent below the average for the SDGs, set the threshold at the desired percentage and click Calculate. To the right of these instructions, you will see a group of comparisons between the focus company and the average of the comparators. When the focus company fails to meet the threshold you set, you will see a flag that says \"Below.\" When it meets the threshold, the flag will say \"Pass.\""]
[]
[]
[]
[]
[]
[]
[]
[]
["What to Do, Next?"]
["When the focus company appears likely to fail the materiality test for a particular SDG area, it should consider taking steps to rectify this issue.These steps could include:"]
[]
[]
[" 1. Improve policies and practices in the area of concern."]
[" 2. Gather more data to allow better understanding of performance in the area."]
[" 3. Improve reporting to ratings groups and share relevant indicators."]
[]
[]
["CSRHub's ratings are based on the views of hundreds of ratings groups. These groups typically rely on both formal and informal reporting from the entities they cover plus their own internal analysis techniques and models. If necessary, CSRHub can supply additional reports and tools to help improve reporting and strength an entity's engagement with rating sources."]
[]
[]
[]
[]
[]
["For more information on CSRHub’s methodology, please see this page on CSRHub’s web site."]

{"sheet":"Enter Company Names","index":1,"n_rows":44,"n_cols":24,"rows_kept":44,"cut":false,"hidden":false,"merged":[[0,17,0,23],[2,17,4,18],[2,13,3,15],[5,17,5,23],[12,0,12,1],[12,10,12,15]]}
[null,null,null,null,null,null,null,null,null,null,null,null,null,null,null,null,null,"Controls for Fine Tuning Scope of Search"]
[null,null,null,null,null,null,null,null,null,null,null,null,null,null,null,null,null,null,null,null,"Name","Ticker","URL","ISIN"]
["Enter The Company Or Companies You Want To Study",null,null,null,null,null,null,null,null,null,null,null,null,"NA = Rating or information not available. This can also be due to a company with only partial ratings. We do not provide an overall score for partially rated companies.",null,null,null,"Set to include (I) or exclude (X) fully rated, partially rated and/or unrated companies from your search",null,"Fully Rated","I","I","I","I"]
["1. Enter a company name, part of a company name, or a brand in column B, a ticker into column C, a web URL into column D, and/or an ISIN number into column E.",null,null,null,null,null,null,null,null,null,null,null,null,null,null,null,null,null,null,"Partially Rated","I","I","I","I"]
["2. If the CSRHub name you want does not appear in column J, use the CSRHub name lookup tool (top menu, CSRHub…Company) to paste the right text company name into column J.",null,null,null,null,null,null,null,null,null,null,null,null,null,null,null,null,null,null,"Not Rated","I","I","I","I"]
["3. The data in columns K to Q should help you double check that you have the right name match. The name in column J is the one used automatically on other sheets.",null,null,null,null,null,null,null,null,null,null,null,null,null,"Version:",{"$f":"CSRHubAPIVersionNumber()","v":"3.3"},null,"Changes in the settings above will change the search parameter in cells F13-I13"]
["4. If you need to lookup more than 30 companies, you can copy the formulas in row 44 down as far as you wish.",null,null,null,null,null,null,null,null,null,null,null,null,null,"Last Content Update:","2026-03-26"]
["5. Use column A to store your internal identifier or version of the company name for later reference. You can change the scope of search using the box starting in column R.",null,null,null,null,null,null,null,null,null,null,null,null,null,"Last Code Update:",{"$f":"CSRHubAPIVersionDate()","v":"2025-12-25"},null,null,"Month","Year"]
["6. Request a specific Month and Year of data, in cells S9 and T9.  Choose Formulas from the top menu, then Calculate Sheet. This will allow our database to update the sheet.",null,null,null,null,null,null,null,null,null,null,null,null,null,"Includes MonetDB Mac Update",null,null,"Data Date","February",2026]
["7. Enter your CSRHub site credentials (username/password) when directed."]
[]
[]
["Top Line Summary",null,{"$f":"COUNT(N15:N212) & \" Companies\"","v":"17 Companies"},null,"Search scope parameters (see Column P)",{"$f":"IF(AND(U3=\"I\",U4=\"I\",U5=\"I\"),\"0\",IF(AND(U3=\"I\",U4=\"X\",U5=\"X\"),\"1\",IF(AND(U3=\"I\",U4=\"I\",U5=\"X\"),\"2\",IF(AND(U3=\"X\",U4=\"I\",U5=\"X\"),\"3\",IF(AND(U3=\"X\",U4=\"X\",U5=\"I\"),\"4\",IF(AND(U3=\"X\",U4=\"I\",U5=\"I\"),\"5\",IF(AND(U3=\"I\",U4=\"X\",U5=\"I\"),\"6\",\"0\")))))))","v":"0"},{"$f":"IF(AND(V3=\"I\",V4=\"I\",V5=\"I\"),\"0\",IF(AND(V3=\"I\",V4=\"X\",V5=\"X\"),\"1\",IF(AND(V3=\"I\",V4=\"I\",V5=\"X\"),\"2\",IF(AND(V3=\"X\",V4=\"I\",V5=\"X\"),\"3\",IF(AND(V3=\"X\",V4=\"X\",V5=\"I\"),\"4\",IF(AND(V3=\"X\",V4=\"I\",V5=\"I\"),\"5\",IF(AND(V3=\"I\",V4=\"X\",V5=\"I\"),\"6\",\"0\")))))))","v":"0"},"0","0","More instructions and examples are available online.","Ways to Double Check the Name"]
["Internal ID (Optional)","Enter Name","Enter Ticker (No exchange code)","Enter web URL","Enter ISIN","Simple Lookup (NA or blank = didn't work)","Ticker Lookup (NA or blank = didn't work)","URL Lookup (NA or blank = didn't work)","ISIN Lookup (NA or blank = didn't work)","Best Guess (replace using name lookup tool when NA)","Country","City","Ticker","# of Sources","ISIN","Industry","Overall Ratings"]
[null,"American Well Corp",null,null,null,{"$f":"csrhubfindcompanyname($B15,0,F$13)","v":"American Well Corp"},{"$f":"csrhubfindcompanyname($C15,3,G$13)","v":"NA"},{"$f":"csrhubfindcompanyname($D15,5,H$13)","v":"NA"},{"$f":"csrhubfindcompanyname($E15,4,I$13)","v":"NA"},{"$f":"IF(I15=\"NA\",IF(H15=\"NA\",IF(F15=\"NA\",IF(G15= \"NA\",\"NA\",G15),F15),H15),I15)","v":"American Well Corp"},{"$f":"csrhubcompanycountry(J15)","v":"USA"},{"$f":"CSRHubCompanycity(J15)","v":"Boston"},{"$f":"CSRHubCompanyTicker(J15)","v":"AMWL"},{"$f":"CSRHubDScount(J15)","v":18},{"$f":"csrhubcompanyisin(J15)","v":"US03044L1052"},{"$f":"CSRHubCompanyIndustry(J15)","v":"Healthcare Providers"},{"$f":"CSRHubRating(J15)","v":50.191000000000003}]
[null,"Pernod Ricard",null,null,null,{"$f":"csrhubfindcompanyname($B16,0,F$13)","v":"Pernod Ricard"},"NA","NA","NA","Pernod Ricard",{"$f":"csrhubcompanycountry(J16)","v":"France"},{"$f":"CSRHubCompanycity(J16)","v":"Paris"},{"$f":"CSRHubCompanyTicker(J16)","v":"RI"},{"$f":"CSRHubDScount(J16)","v":38},{"$f":"csrhubcompanyisin(J16)","v":"FR0000120693"},{"$f":"CSRHubCompanyIndustry(J16)","v":"Beer, Wine, & Distilled Alcoholic Bev. Wholesalers"},{"$f":"CSRHubRating(J16)","v":59.7926}]
[null,"FILA Fabbrica Italiana Lapis d Affni SpA",null,null,null,"FILA Fabbrica Italiana Lapis d Affni SpA","NA","NA","NA","FILA Fabbrica Italiana Lapis d Affni SpA",{"$f":"csrhubcompanycountry(J17)","v":"Italy"},"Milan","FILA",25,"IT0004967292","Paper Products",53.690100000000001]
[null,"Coty Inc.",null,null,null,"Coty Inc.","NA","NA","NA","Coty Inc.","USA","New York City","COTY",44,"US2220702037","Luxury Goods & Cosmetics Manufacturing",58.383699999999997]
[null,"Barnes & Noble, Inc.",null,null,null,"Barnes & Noble, Inc.","NA","NA","NA","Barnes & Noble, Inc.","USA","New York City","BKS",4,"US0677741094","Wholesale Trade",46.327199999999998]
[null,"3M Company",null,null,null,"3M Company","NA","NA","NA","3M Company","USA","Saint Paul","MMM",76,"US88579Y1010","Manufacturing",56.793300000000002]
[null,"Newell Rubbermaid Inc.",null,null,null,"Newell Rubbermaid Inc.","NA",{"$f":"csrhubfindcompanyname($D21,5,H$13)","v":"NA"},"NA",{"$f":"IF(I21=\"NA\",IF(H21=\"NA\",IF(F21=\"NA\",IF(G21= \"NA\",\"NA\",G21),F21),H21),I21)","v":"Newell Rubbermaid Inc."},"USA","Atlanta","NWL",36,"US6512291062","Household Products",56.208599999999997]
[null,"Procter & Gamble Company",null,null,null,"Procter & Gamble Company","NA",{"$f":"csrhubfindcompanyname($D22,5,H$13)","v":"NA"},"NA",{"$f":"IF(I22=\"NA\",IF(H22=\"NA\",IF(F22=\"NA\",IF(G22= \"NA\",\"NA\",G22),F22),H22),I22)","v":"Procter & Gamble Company"},"USA","Cincinnati","PG",89,"US7427181091","Manufacturing",60.948]
[null,"Unilever PLC",null,null,null,"Unilever PLC","NA","NA","NA","Unilever PLC","United Kingdom","London","ULVR",75,"GB00B10RZP78","Household Products",63.393900000000002]
[null,"Church & Dwight Co., Inc.",null,null,null,"Church & Dwight Co., Inc.","NA","NA","NA","Church & Dwight Co., Inc.","USA","Princeton","CHD",48,"US1713401024","Chemicals, Plastics & Rubber Products Mfg.",58.641100000000002]
[null,"Edgewell Personal Care Company",null,null,null,"Edgewell Personal Care Company","NA","NA","NA","Edgewell Personal Care Company","USA","St. Louis","EPC",31,"US28035Q1022","Luxury Goods & Cosmetics Manufacturing",57.336399999999998]
[null,"BIC",null,null,null,"BIC","NA","NA","NA","BIC","France","Clichy","BB",30,"FR0000120966","Manufacturing",60.832299999999996]
[null,"Johnson & Johnson",null,null,null,"Johnson & Johnson","NA","NA","NA","Johnson & Johnson","USA","New Brunswick","JNJ",85,"US4781601046","Medical Equipment & Supplies Manufacturing",61.883699999999997]
[null,"Amazon.com, Inc.",null,null,null,"Amazon.com, Inc.","NA","NA","NA","Amazon.com, Inc.","USA","Seattle","AMZN",83,"US0231351067","Electronic Shopping and Mail-Order Houses",51.522399999999998]
[null,"Groupe Danone",null,null,null,"Groupe Danone","NA","NA","NA","Groupe Danone","France","Paris","BN",63,"FR0000120644","Food Products",64.425799999999995]
[null,"Walmart Inc.",null,null,null,"Walmart Inc.","NA","NA","NA","Walmart Inc.","USA","Bentonville","WMT",87,"US9311421039","Retail",57.273400000000002]
[null,"Carrefour",null,null,null,"Carrefour","NA","NA","NA","Carrefour","France","Levallois-Perret","CA",48,"FR0000120172","Supermarket, Food & Beverage Stores",60.4923]
[null,null,null,null,null,"NA","NA","NA","NA","NA","","","","NA","","NA","NA"]
[null,null,null,null,null,"NA","NA","NA","NA","NA","","","","NA","","NA","NA"]
[null,null,null,null,null,"NA","NA","NA","NA","NA","","","","NA","","NA","NA"]
[null,null,null,null,null,"NA","NA","NA","NA","NA","","","","NA","","NA","NA"]
[null,null,null,null,null,"NA","NA","NA","NA","NA","","","","NA","","NA","NA"]
[null,null,null,null,null,"NA","NA","NA","NA","NA","","","","NA","","NA","NA"]
[null,null,null,null,null,"NA","NA","NA","NA","NA","","","","NA","","NA","NA"]
[null,null,null,null,null,"NA","NA","NA","NA","NA","","","","NA","","NA","NA"]
[null,null,null,null,null,"NA","NA","NA","NA","NA","","","","NA","","NA","NA"]
[null,null,null,null,null,"NA","NA","NA","NA","NA","","","","NA","","NA","NA"]
[null,null,null,null,null,"NA","NA","NA","NA","NA","","","","NA","","NA","NA"]
[null,null,null,null,null,"NA","NA","NA","NA","NA","","","","NA","","NA","NA"]
[null,null,null,null,null,"NA","NA","NA","NA","NA","","","","NA","","NA","NA"]

{"sheet":"CSRHub Ratings","index":2,"n_rows":31,"n_cols":14,"rows_kept":31,"cut":false,"hidden":false,"merged":[[8,2,8,19],[12,0,12,1],[12,2,12,25]]}
[]
[]
["Instructions for SDG Calculator (Continued)"]
["1. The company names will pull from Enter Names sheet. Verify date is correct when you click Calculate."]
["2. Clear out any old ratings numbers (cell B15 to M15 and down). When prompted, click \"No\" to not delete query."]
["3. Go to CSRHub menu and choose third button (Rebuild Data on This Sheet).  Then do another Excel calculation to update averages."]
[]
[]
[]
[null,"Average Rating",{"$f":"AVERAGEIF(C16:C211,\"<>NA\")","v":55.620000000000005},{"$f":"AVERAGEIF(D16:D211,\"<>NA\")","v":58.618749999999999},55.144999999999996,53.078125,53.872499999999995,53.453749999999999,57.111249999999998,58.521250000000002,57.301874999999995,55.929375,54.712499999999999,54.522499999999994]
[null,"Best Rating",{"$f":"MAX(C16:C211)","v":61.78},{"$f":"MAX(D16:D211)","v":65.849999999999994},63.59,59.39,62.67,61.17,63.64,68.44,65.930000000000007,60.84,60.01,59.44]
[null,"Worst Rating",{"$f":"MIN(C16:C211)","v":48.03},{"$f":"MIN(D16:D211)","v":42.21},42.2,39.880000000000003,40.94,36.99,39.54,40.46,40.89,40.6,40.94,38.590000000000003]
[]
["PUT YOUR INTERNAL COMPANY IDENTIFIER HERE","PUT COMPANY NAME OR TICKER HERE",{"$f":"\"Community Dev & Philanthropy Rating (\" & 'Enter Company Names'!$S$9 & \" \" & 'Enter Company Names'!$T$9 & \")\"","v":"Community Dev & Philanthropy Rating (February 2026)"},{"$f":"\"Human Rights & Supply Chain Rating (\" & 'Enter Company Names'!$S$9 & \" \" & 'Enter Company Names'!$T$9 & \")\"","v":"Human Rights & Supply Chain Rating (February 2026)"},{"$f":"\"Product Rating (\" & 'Enter Company Names'!$S$9 & \" \" & 'Enter Company Names'!$T$9 & \")\"","v":"Product Rating (February 2026)"},{"$f":"\"Compensation & Benefits Rating (\" & 'Enter Company Names'!$S$9 & \" \" & 'Enter Company Names'!$T$9 & \")\"","v":"Compensation & Benefits Rating (February 2026)"},{"$f":"\"Diversity & Labor Rights Rating (\" & 'Enter Company Names'!$S$9 & \" \" & 'Enter Company Names'!$T$9 & \")\"","v":"Diversity & Labor Rights Rating (February 2026)"},{"$f":"\"Training, Health & Safety Rating (\" & 'Enter Company Names'!$S$9 & \" \" & 'Enter Company Names'!$T$9 & \")\"","v":"Training, Health & Safety Rating (February 2026)"},{"$f":"\"Energy & Climate Change Rating (\" & 'Enter Company Names'!$S$9 & \" \" & 'Enter Company Names'!$T$9 & \")\"","v":"Energy & Climate Change Rating (February 2026)"},{"$f":"\"Environment Policy & Reporting Rating (\" & 'Enter Company Names'!$S$9 & \" \" & 'Enter Company Names'!$T$9 & \")\"","v":"Environment Policy & Reporting Rating (February 2026)"},{"$f":"\"Resource Management Rating (\" & 'Enter Company Names'!$S$9 & \" \" & 'Enter Company Names'!$T$9 & \")\"","v":"Resource Management Rating (February 2026)"},{"$f":"\"Board Rating (\" & 'Enter Company Names'!$S$9 & \" \" & 'Enter Company Names'!$T$9 & \")\"","v":"Board Rating (February 2026)"},{"$f":"\"Leadership Ethics Rating (\" & 'Enter Company Names'!$S$9 & \" \" & 'Enter Company Names'!$T$9 & \")\"","v":"Leadership Ethics Rating (February 2026)"},{"$f":"\"Transparency & Reporting Rating (\" & 'Enter Company Names'!$S$9 & \" \" & 'Enter Company Names'!$T$9 & \")\"","v":"Transparency & Reporting Rating (February 2026)"}]
[null,{"$f":"'Enter Company Names'!J15","v":"American Well Corp"},49.37,52.78,50.43,43.31,42.47,45.19,40.909999999999997,44.27,51.92,50.45,52.88,49.43]
[null,{"$f":"'Enter Company Names'!J16","v":"Pernod Ricard"},60.06,65.27,63.59,54.32,59.16,56.62,59.98,65.23,65.53,53.92,53.96,52.09]
[null,{"$f":"'Enter Company Names'!J17","v":"FILA Fabbrica Italiana Lapis d Affni SpA"},50.65,56.88,56.32,46,48.57,49.03,50.45,55.49,53.35,55.31,54.98,55.43]
[null,{"$f":"'Enter Company Names'!J18","v":"Coty Inc."},55.3,59.82,57.8,50.86,54.1,54.56,62.23,63.69,59.75,55.91,59.08,54.73]
[null,{"$f":"'Enter Company Names'!J19","v":"Barnes & Noble, Inc."},48.03,42.21,42.2,39.880000000000003,40.94,36.99,39.54,40.46,40.89,40.6,40.94,38.590000000000003]
[null,{"$f":"'Enter Company Names'!J20","v":"3M Company"},55.65,60.42,44.98,54.86,54.33,50.76,59.73,54.94,47.94,60.04,55.33,58.39]
[null,{"$f":"'Enter Company Names'!J21","v":"Newell Rubbermaid Inc."},50.68,56.19,52.41,48.75,49.22,49.29,52.11,50.33,49.18,59.05,56.74,54.53]
[null,{"$f":"'Enter Company Names'!J22","v":"Procter & Gamble Company"},57.06,58.38,56.38,58.86,58.3,56.62,60.08,63.78,62.96,59.27,56.45,57.75]
[null,{"$f":"'Enter Company Names'!J23","v":"Unilever PLC"},58.49,61.64,61.54,58.02,57.61,61.17,63.64,64.66,63.94,59.58,55.15,57.58]
[null,{"$f":"'Enter Company Names'!J24","v":"Church & Dwight Co., Inc."},53.56,58.55,59.23,48.18,48.37,51.46,57.45,62.92,63.98,49.96,54.36,52.99]
[null,{"$f":"'Enter Company Names'!J25","v":"Edgewell Personal Care Company"},52.51,56.26,52.48,50.4,49.15,54.54,55.96,56.72,54.74,56.03,54.35,53.42]
[null,{"$f":"'Enter Company Names'!J26","v":"BIC"},59.86,60.68,56.31,57.87,61.34,61.03,57.83,59.51,53.85,55.35,58.2,55.65]
[null,{"$f":"'Enter Company Names'!J27","v":"Johnson & Johnson"},61.78,64.08,55.89,58.19,58.53,58.94,62.61,62.88,62.99,60.84,56.35,58.88]
[null,{"$f":"'Enter Company Names'!J28","v":"Amazon.com, Inc."},52.4,51.6,49.25,51.4,49.2,48.86,52.68,50.19,48.78,55.19,50.65,53.37]
[null,{"$f":"'Enter Company Names'!J29","v":"Groupe Danone"},61.6,65.849999999999994,59.68,59.39,62.67,58.68,63.54,68.44,65.930000000000007,60.69,60.01,59.44]
[null,{"$f":"'Enter Company Names'!J30","v":"Walmart Inc."},53.46,56.77,54.5,52.97,49.92,50.27,57.64,55.13,59.92,56.54,52.63,55.02]
[null,{"$f":"'Enter Company Names'!J31","v":"Carrefour"},58.83,63.3,59.76,59.3,60.55,56.44,58.31,61.97,63.1,56.59,56.22,54.5]

{"sheet":"SDG Score Overview","index":3,"n_rows":34,"n_cols":18,"rows_kept":34,"cut":false,"hidden":false,"merged":[[12,0,12,17]]}
[]
[]
[]
["Instructions for SDG Calculator (Continued)"]
["1. The company names will pull from Enter Company Names sheet."]
["2. Click \"Calculate\" to update CSRHub scores applied to SDG topics."]
[]
[]
[{"$f":"\"For \"&A15&\"\"","v":"For American Well Corp"},{"$f":"B14","v":"End poverty in all its forms everywhere"},{"$f":"C14","v":"End hunger, achieve food security and improved nutrition and promote sustainable agriculture"},"Ensure healthy lives and promote well-being for all at all ages","Ensure inclusive and equitable quality education and promote lifelong learning opportunities for all","Achieve gender equality and empower all women and girls","Ensure availability and sustainable management of water and sanitation for all","Ensure access to affordable, reliable, sustainable and modern energy for all","Promote sustained, inclusive and sustainable economic growth, full and productive employment and decent work for all","Build resilient infrastructure, promote inclusive and sustainable industrialization and foster innovation","Reduce inequality within and among countries","Make cities and human settlements inclusive, safe, resilient and sustainable","Ensure sustainable consumption and production patterns","Take urgent action to combat climate change and its impacts","Conserve and sustainably use the oceans, seas and marine resources for sustainable development","Protect, restore and promote sustainable use of terrestrial ecosystems, sustainably manage forests, combat desertification, and halt and reverse land degradation and halt biodiversity loss","Promote peaceful and inclusive societies for sustainable development, provide access to justice for all and build effective, accountable and inclusive institutions at all levels","Strengthen the means of implementation and revitalize the global partnership for sustainable development"]
["Average Rating",{"$f":"AVERAGEIF(B16:B217,\"<>0\")","v":54.628392857142849},{"$f":"AVERAGEIF(C16:C217,\"<>0\")","v":57.060875000000003},55.897499999999994,54.100000000000009,54.910208333333337,56.342187500000001,57.090937499999995,53.809250000000006,57.407265625000001,54.786071428571432,56.833541666666669,58.265156250000011,56.632767857142866,57.935937500000001,57.291250000000005,54.807083333333324,56.190750000000008]
["Best Rating",{"$f":"MAX(B16:B217)","v":60.192857142857136},{"$f":"MAX(C16:C217)","v":63.94400000000001},62.043333333333322,60.814999999999998,61.068333333333328,63.677500000000002,64.28,60.760000000000005,65.033749999999998,60.531428571428563,64.186666666666667,66.517499999999998,63.442857142857136,66.537499999999994,65.231999999999999,61.371666666666663,62.721000000000004]
["Worst Rating",{"$f":"MIN(B16:B217)","v":43.022857142857141},{"$f":"MIN(C16:C217)","v":43.108000000000004},42.41,40.737499999999997,41.036666666666662,43.002499999999998,41.892499999999998,40.768000000000001,40.287500000000001,42.112857142857138,42.001666666666665,41.442499999999995,40.018571428571427,41.112499999999997,41.078000000000003,43.513333333333328,41.030000000000008]
[]
["Company Name",{"$f":"'SDG Mapping'!B15","v":"End poverty in all its forms everywhere"},{"$f":"'SDG Mapping'!B16","v":"End hunger, achieve food security and improved nutrition and promote sustainable agriculture"},{"$f":"'SDG Mapping'!B17","v":"Ensure healthy lives and promote well-being for all at all ages"},{"$f":"'SDG Mapping'!$B18","v":"Ensure inclusive and equitable quality education and promote lifelong learning opportunities for all"},{"$f":"'SDG Mapping'!$B19","v":"Achieve gender equality and empower all women and girls"},{"$f":"'SDG Mapping'!$B20","v":"Ensure availability and sustainable management of water and sanitation for all"},{"$f":"'SDG Mapping'!$B21","v":"Ensure access to affordable, reliable, sustainable and modern energy for all"},{"$f":"'SDG Mapping'!$B22","v":"Promote sustained, inclusive and sustainable economic growth, full and productive employment and decent work for all"},{"$f":"'SDG Mapping'!$B23","v":"Build resilient infrastructure, promote inclusive and sustainable industrialization and foster innovation"},{"$f":"'SDG Mapping'!$B24","v":"Reduce inequality within and among countries"},{"$f":"'SDG Mapping'!$B25","v":"Make cities and human settlements inclusive, safe, resilient and sustainable"},{"$f":"'SDG Mapping'!$B26","v":"Ensure sustainable consumption and production patterns"},{"$f":"'SDG Mapping'!$B27","v":"Take urgent action to combat climate change and its impacts"},{"$f":"'SDG Mapping'!$B28","v":"Conserve and sustainably use the oceans, seas and marine resources for sustainable development"},{"$f":"'SDG Mapping'!$B29","v":"Protect, restore and promote sustainable use of terrestrial ecosystems, sustainably manage forests, combat desertification, and halt and reverse land degradation and halt biodiversity loss"},{"$f":"'SDG Mapping'!$B30","v":"Promote peaceful and inclusive societies for sustainable development, provide access to justice for all and build effective, accountable and inclusive institutions at all levels"},{"$f":"'SDG Mapping'!$B31","v":"Strengthen the means of implementation and revitalize the global partnership for sustainable development"}]
[{"$f":"'CSRHub Ratings'!B15","v":"American Well Corp"},{"$f":"SUMPRODUCT('CSRHub Ratings'!$C15:$N15,'SDG Mapping'!$C$15:$N$15)","v":48.442857142857136},{"$f":"SUMPRODUCT('CSRHub Ratings'!$C15:$N15,'SDG Mapping'!$C$16:$N$16)","v":51.456000000000003},{"$f":"SUMPRODUCT('CSRHub Ratings'!$C15:$N15,'SDG Mapping'!$C$17:$N$17)","v":49.11333333333333},{"$f":"SUMPRODUCT('CSRHub Ratings'!$C15:$N15,'SDG Mapping'!$C$18:$N$18)","v":45.555},{"$f":"SUMPRODUCT('CSRHub Ratings'!$C15:$N15,'SDG Mapping'!$C$19:$N$19)","v":48.191666666666663},{"$f":"SUMPRODUCT('CSRHub Ratings'!$C15:$N15,'SDG Mapping'!$C$20:$N$20)","v":50.91},{"$f":"SUMPRODUCT('CSRHub Ratings'!$C15:$N15,'SDG Mapping'!$C$21:$N$21)","v":43.865000000000002},{"$f":"SUMPRODUCT('CSRHub Ratings'!$C15:$N15,'SDG Mapping'!$C$22:$N$22)","v":44.398000000000003},{"$f":"SUMPRODUCT('CSRHub Ratings'!$C15:$N15,'SDG Mapping'!$C$23:$N$23)","v":46.628750000000004},{"$f":"SUMPRODUCT('CSRHub Ratings'!$C15:$N15,'SDG Mapping'!$C$24:$N$24)","v":48.477142857142852},{"$f":"SUMPRODUCT('CSRHub Ratings'!$C15:$N15,'SDG Mapping'!$C$25:$N$25)","v":48.136666666666663},{"$f":"SUMPRODUCT('CSRHub Ratings'!$C15:$N15,'SDG Mapping'!$C$26:$N$26)","v":50.4375},{"$f":"SUMPRODUCT('CSRHub Ratings'!$C15:$N15,'SDG Mapping'!$C$27:$N$27)","v":46.16},{"$f":"SUMPRODUCT('CSRHub Ratings'!$C15:$N15,'SDG Mapping'!$C$28:$N$28)","v":50.222500000000004},{"$f":"SUMPRODUCT('CSRHub Ratings'!$C15:$N15,'SDG Mapping'!$C$29:$N$29)","v":50.754000000000005},{"$f":"SUMPRODUCT('CSRHub Ratings'!$C15:$N15,'SDG Mapping'!$C$30:$N$30)","v":47.831666666666663},{"$f":"SUMPRODUCT('CSRHub Ratings'!$C15:$N15,'SDG Mapping'!$C$31:$N$31)","v":48.336000000000006}]
[{"$f":"'CSRHub Ratings'!B16","v":"Pernod Ricard"},{"$f":"SUMPRODUCT('CSRHub Ratings'!$C16:$N16,'SDG Mapping'!$C$15:$N$15)","v":58.557142857142864},{"$f":"SUMPRODUCT('CSRHub Ratings'!$C16:$N16,'SDG Mapping'!$C$16:$N$16)","v":63.94400000000001},{"$f":"SUMPRODUCT('CSRHub Ratings'!$C16:$N16,'SDG Mapping'!$C$17:$N$17)","v":60.649999999999991},{"$f":"SUMPRODUCT('CSRHub Ratings'!$C16:$N16,'SDG Mapping'!$C$18:$N$18)","v":58.114999999999995},{"$f":"SUMPRODUCT('CSRHub Ratings'!$C16:$N16,'SDG Mapping'!$C$19:$N$19)","v":57.284999999999997},{"$f":"SUMPRODUCT('CSRHub Ratings'!$C16:$N16,'SDG Mapping'!$C$20:$N$20)","v":63.677500000000002},{"$f":"SUMPRODUCT('CSRHub Ratings'!$C16:$N16,'SDG Mapping'!$C$21:$N$21)","v":61.3125},{"$f":"SUMPRODUCT('CSRHub Ratings'!$C16:$N16,'SDG Mapping'!$C$22:$N$22)","v":58.110000000000007},{"$f":"SUMPRODUCT('CSRHub Ratings'!$C16:$N16,'SDG Mapping'!$C$23:$N$23)","v":62.888750000000002},{"$f":"SUMPRODUCT('CSRHub Ratings'!$C16:$N16,'SDG Mapping'!$C$24:$N$24)","v":58.371428571428567},{"$f":"SUMPRODUCT('CSRHub Ratings'!$C16:$N16,'SDG Mapping'!$C$25:$N$25)","v":63.32},{"$f":"SUMPRODUCT('CSRHub Ratings'!$C16:$N16,'SDG Mapping'!$C$26:$N$26)","v":65.324999999999989},{"$f":"SUMPRODUCT('CSRHub Ratings'!$C16:$N16,'SDG Mapping'!$C$27:$N$27)","v":58.627142857142857},{"$f":"SUMPRODUCT('CSRHub Ratings'!$C16:$N16,'SDG Mapping'!$C$28:$N$28)","v":65.39},{"$f":"SUMPRODUCT('CSRHub Ratings'!$C16:$N16,'SDG Mapping'!$C$29:$N$29)","v":63.104000000000006},{"$f":"SUMPRODUCT('CSRHub Ratings'!$C16:$N16,'SDG Mapping'!$C$30:$N$30)","v":59.331666666666663},{"$f":"SUMPRODUCT('CSRHub Ratings'!$C16:$N16,'SDG Mapping'!$C$31:$N$31)","v":59.168000000000006}]
[{"$f":"'CSRHub Ratings'!B17","v":"FILA Fabbrica Italiana Lapis d Affni SpA"},{"$f":"SUMPRODUCT('CSRHub Ratings'!$C17:$N17,'SDG Mapping'!$C$15:$N$15)","v":51.559999999999995},{"$f":"SUMPRODUCT('CSRHub Ratings'!$C17:$N17,'SDG Mapping'!$C$16:$N$16)","v":54.81600000000001},{"$f":"SUMPRODUCT('CSRHub Ratings'!$C17:$N17,'SDG Mapping'!$C$17:$N$17)","v":52.186666666666667},{"$f":"SUMPRODUCT('CSRHub Ratings'!$C17:$N17,'SDG Mapping'!$C$18:$N$18)","v":49.32},{"$f":"SUMPRODUCT('CSRHub Ratings'!$C17:$N17,'SDG Mapping'!$C$19:$N$19)","v":53.176666666666669},{"$f":"SUMPRODUCT('CSRHub Ratings'!$C17:$N17,'SDG Mapping'!$C$20:$N$20)","v":53.417500000000004},{"$f":"SUMPRODUCT('CSRHub Ratings'!$C17:$N17,'SDG Mapping'!$C$21:$N$21)","v":51.760000000000005},{"$f":"SUMPRODUCT('CSRHub Ratings'!$C17:$N17,'SDG Mapping'!$C$22:$N$22)","v":49.091999999999999},{"$f":"SUMPRODUCT('CSRHub Ratings'!$C17:$N17,'SDG Mapping'!$C$23:$N$23)","v":53.502500000000012},{"$f":"SUMPRODUCT('CSRHub Ratings'!$C17:$N17,'SDG Mapping'!$C$24:$N$24)","v":52.592857142857135},{"$f":"SUMPRODUCT('CSRHub Ratings'!$C17:$N17,'SDG Mapping'!$C$25:$N$25)","v":53.268333333333331},{"$f":"SUMPRODUCT('CSRHub Ratings'!$C17:$N17,'SDG Mapping'!$C$26:$N$26)","v":55.65},{"$f":"SUMPRODUCT('CSRHub Ratings'!$C17:$N17,'SDG Mapping'!$C$27:$N$27)","v":53.942857142857143},{"$f":"SUMPRODUCT('CSRHub Ratings'!$C17:$N17,'SDG Mapping'!$C$28:$N$28)","v":54.767499999999998},{"$f":"SUMPRODUCT('CSRHub Ratings'!$C17:$N17,'SDG Mapping'!$C$29:$N$29)","v":54.810000000000009},{"$f":"SUMPRODUCT('CSRHub Ratings'!$C17:$N17,'SDG Mapping'!$C$30:$N$30)","v":51.623333333333328},{"$f":"SUMPRODUCT('CSRHub Ratings'!$C17:$N17,'SDG Mapping'!$C$31:$N$31)","v":54.29}]
[{"$f":"'CSRHub Ratings'!B18","v":"Coty Inc."},{"$f":"SUMPRODUCT('CSRHub Ratings'!$C18:$N18,'SDG Mapping'!$C$15:$N$15)","v":55.285714285714278},{"$f":"SUMPRODUCT('CSRHub Ratings'!$C18:$N18,'SDG Mapping'!$C$16:$N$16)","v":58.498000000000005},{"$f":"SUMPRODUCT('CSRHub Ratings'!$C18:$N18,'SDG Mapping'!$C$17:$N$17)","v":56.559999999999995},{"$f":"SUMPRODUCT('CSRHub Ratings'!$C18:$N18,'SDG Mapping'!$C$18:$N$18)","v":54.63},{"$f":"SUMPRODUCT('CSRHub Ratings'!$C18:$N18,'SDG Mapping'!$C$19:$N$19)","v":56.149999999999991},{"$f":"SUMPRODUCT('CSRHub Ratings'!$C18:$N18,'SDG Mapping'!$C$20:$N$20)","v":58.15},{"$f":"SUMPRODUCT('CSRHub Ratings'!$C18:$N18,'SDG Mapping'!$C$21:$N$21)","v":60.862499999999997},{"$f":"SUMPRODUCT('CSRHub Ratings'!$C18:$N18,'SDG Mapping'!$C$22:$N$22)","v":53.544000000000004},{"$f":"SUMPRODUCT('CSRHub Ratings'!$C18:$N18,'SDG Mapping'!$C$23:$N$23)","v":60.723749999999995},{"$f":"SUMPRODUCT('CSRHub Ratings'!$C18:$N18,'SDG Mapping'!$C$24:$N$24)","v":55.835714285714282},{"$f":"SUMPRODUCT('CSRHub Ratings'!$C18:$N18,'SDG Mapping'!$C$25:$N$25)","v":59.753333333333323},{"$f":"SUMPRODUCT('CSRHub Ratings'!$C18:$N18,'SDG Mapping'!$C$26:$N$26)","v":60.769999999999996},{"$f":"SUMPRODUCT('CSRHub Ratings'!$C18:$N18,'SDG Mapping'!$C$27:$N$27)","v":60.222857142857137},{"$f":"SUMPRODUCT('CSRHub Ratings'!$C18:$N18,'SDG Mapping'!$C$28:$N$28)","v":60.752499999999998},{"$f":"SUMPRODUCT('CSRHub Ratings'!$C18:$N18,'SDG Mapping'!$C$29:$N$29)","v":60.418000000000006},{"$f":"SUMPRODUCT('CSRHub Ratings'!$C18:$N18,'SDG Mapping'!$C$30:$N$30)","v":55.946666666666658},{"$f":"SUMPRODUCT('CSRHub Ratings'!$C18:$N18,'SDG Mapping'!$C$31:$N$31)","v":58.691000000000003}]
[{"$f":"'CSRHub Ratings'!B19","v":"Barnes & Noble, Inc."},{"$f":"SUMPRODUCT('CSRHub Ratings'!$C19:$N19,'SDG Mapping'!$C$15:$N$15)","v":43.022857142857141},{"$f":"SUMPRODUCT('CSRHub Ratings'!$C19:$N19,'SDG Mapping'!$C$16:$N$16)","v":43.108000000000004},{"$f":"SUMPRODUCT('CSRHub Ratings'!$C19:$N19,'SDG Mapping'!$C$17:$N$17)","v":42.41},{"$f":"SUMPRODUCT('CSRHub Ratings'!$C19:$N19,'SDG Mapping'!$C$18:$N$18)","v":40.737499999999997},{"$f":"SUMPRODUCT('CSRHub Ratings'!$C19:$N19,'SDG Mapping'!$C$19:$N$19)","v":41.036666666666662},{"$f":"SUMPRODUCT('CSRHub Ratings'!$C19:$N19,'SDG Mapping'!$C$20:$N$20)","v":43.002499999999998},{"$f":"SUMPRODUCT('CSRHub Ratings'!$C19:$N19,'SDG Mapping'!$C$21:$N$21)","v":41.892499999999998},{"$f":"SUMPRODUCT('CSRHub Ratings'!$C19:$N19,'SDG Mapping'!$C$22:$N$22)","v":40.768000000000001},{"$f":"SUMPRODUCT('CSRHub Ratings'!$C19:$N19,'SDG Mapping'!$C$23:$N$23)","v":40.287500000000001},{"$f":"SUMPRODUCT('CSRHub Ratings'!$C19:$N19,'SDG Mapping'!$C$24:$N$24)","v":42.112857142857138},{"$f":"SUMPRODUCT('CSRHub Ratings'!$C19:$N19,'SDG Mapping'!$C$25:$N$25)","v":42.001666666666665},{"$f":"SUMPRODUCT('CSRHub Ratings'!$C19:$N19,'SDG Mapping'!$C$26:$N$26)","v":41.442499999999995},{"$f":"SUMPRODUCT('CSRHub Ratings'!$C19:$N19,'SDG Mapping'!$C$27:$N$27)","v":40.018571428571427},{"$f":"SUMPRODUCT('CSRHub Ratings'!$C19:$N19,'SDG Mapping'!$C$28:$N$28)","v":41.112499999999997},{"$f":"SUMPRODUCT('CSRHub Ratings'!$C19:$N19,'SDG Mapping'!$C$29:$N$29)","v":41.078000000000003},{"$f":"SUMPRODUCT('CSRHub Ratings'!$C19:$N19,'SDG Mapping'!$C$30:$N$30)","v":43.513333333333328},{"$f":"SUMPRODUCT('CSRHub Ratings'!$C19:$N19,'SDG Mapping'!$C$31:$N$31)","v":41.030000000000008}]
[{"$f":"'CSRHub Ratings'!B20","v":"3M Company"},{"$f":"SUMPRODUCT('CSRHub Ratings'!$C20:$N20,'SDG Mapping'!$C$15:$N$15)","v":52.329999999999991},{"$f":"SUMPRODUCT('CSRHub Ratings'!$C20:$N20,'SDG Mapping'!$C$16:$N$16)","v":53.882000000000005},{"$f":"SUMPRODUCT('CSRHub Ratings'!$C20:$N20,'SDG Mapping'!$C$17:$N$17)","v":55.61},{"$f":"SUMPRODUCT('CSRHub Ratings'!$C20:$N20,'SDG Mapping'!$C$18:$N$18)","v":52.875},{"$f":"SUMPRODUCT('CSRHub Ratings'!$C20:$N20,'SDG Mapping'!$C$19:$N$19)","v":54.841666666666661},{"$f":"SUMPRODUCT('CSRHub Ratings'!$C20:$N20,'SDG Mapping'!$C$20:$N$20)","v":49.127499999999998},{"$f":"SUMPRODUCT('CSRHub Ratings'!$C20:$N20,'SDG Mapping'!$C$21:$N$21)","v":57.512499999999996},{"$f":"SUMPRODUCT('CSRHub Ratings'!$C20:$N20,'SDG Mapping'!$C$22:$N$22)","v":52.672000000000004},{"$f":"SUMPRODUCT('CSRHub Ratings'!$C20:$N20,'SDG Mapping'!$C$23:$N$23)","v":56.11},{"$f":"SUMPRODUCT('CSRHub Ratings'!$C20:$N20,'SDG Mapping'!$C$24:$N$24)","v":52.881428571428565},{"$f":"SUMPRODUCT('CSRHub Ratings'!$C20:$N20,'SDG Mapping'!$C$25:$N$25)","v":51.863333333333323},{"$f":"SUMPRODUCT('CSRHub Ratings'!$C20:$N20,'SDG Mapping'!$C$26:$N$26)","v":55.93},{"$f":"SUMPRODUCT('CSRHub Ratings'!$C20:$N20,'SDG Mapping'!$C$27:$N$27)","v":57.585714285714275},{"$f":"SUMPRODUCT('CSRHub Ratings'!$C20:$N20,'SDG Mapping'!$C$28:$N$28)","v":52.81},{"$f":"SUMPRODUCT('CSRHub Ratings'!$C20:$N20,'SDG Mapping'!$C$29:$N$29)","v":53.314000000000007},{"$f":"SUMPRODUCT('CSRHub Ratings'!$C20:$N20,'SDG Mapping'!$C$30:$N$30)","v":53.37833333333333},{"$f":"SUMPRODUCT('CSRHub Ratings'!$C20:$N20,'SDG Mapping'!$C$31:$N$31)","v":55.033000000000001}]
[{"$f":"'CSRHub Ratings'!B21","v":"Newell Rubbermaid Inc."},{"$f":"SUMPRODUCT('CSRHub Ratings'!$C21:$N21,'SDG Mapping'!$C$15:$N$15)","v":51.488571428571419},{"$f":"SUMPRODUCT('CSRHub Ratings'!$C21:$N21,'SDG Mapping'!$C$16:$N$16)","v":52.93},{"$f":"SUMPRODUCT('CSRHub Ratings'!$C21:$N21,'SDG Mapping'!$C$17:$N$17)","v":52.053333333333327},{"$f":"SUMPRODUCT('CSRHub Ratings'!$C21:$N21,'SDG Mapping'!$C$18:$N$18)","v":49.620000000000005},{"$f":"SUMPRODUCT('CSRHub Ratings'!$C21:$N21,'SDG Mapping'!$C$19:$N$19)","v":54.281666666666666},{"$f":"SUMPRODUCT('CSRHub Ratings'!$C21:$N21,'SDG Mapping'!$C$20:$N$20)","v":50.362499999999997},{"$f":"SUMPRODUCT('CSRHub Ratings'!$C21:$N21,'SDG Mapping'!$C$21:$N$21)","v":51.307500000000005},{"$f":"SUMPRODUCT('CSRHub Ratings'!$C21:$N21,'SDG Mapping'!$C$22:$N$22)","v":49.67},{"$f":"SUMPRODUCT('CSRHub Ratings'!$C21:$N21,'SDG Mapping'!$C$23:$N$23)","v":51.966249999999995},{"$f":"SUMPRODUCT('CSRHub Ratings'!$C21:$N21,'SDG Mapping'!$C$24:$N$24)","v":52.751428571428562},{"$f":"SUMPRODUCT('CSRHub Ratings'!$C21:$N21,'SDG Mapping'!$C$25:$N$25)","v":50.648333333333326},{"$f":"SUMPRODUCT('CSRHub Ratings'!$C21:$N21,'SDG Mapping'!$C$26:$N$26)","v":52.972499999999997},{"$f":"SUMPRODUCT('CSRHub Ratings'!$C21:$N21,'SDG Mapping'!$C$27:$N$27)","v":53.599999999999994},{"$f":"SUMPRODUCT('CSRHub Ratings'!$C21:$N21,'SDG Mapping'!$C$28:$N$28)","v":51.22},{"$f":"SUMPRODUCT('CSRHub Ratings'!$C21:$N21,'SDG Mapping'!$C$29:$N$29)","v":52.323999999999998},{"$f":"SUMPRODUCT('CSRHub Ratings'!$C21:$N21,'SDG Mapping'!$C$30:$N$30)","v":51.49166666666666},{"$f":"SUMPRODUCT('CSRHub Ratings'!$C21:$N21,'SDG Mapping'!$C$31:$N$31)","v":52.988999999999997}]
[{"$f":"'CSRHub Ratings'!B22","v":"Procter & Gamble Company"},{"$f":"SUMPRODUCT('CSRHub Ratings'!$C22:$N22,'SDG Mapping'!$C$15:$N$15)","v":57.292857142857144},{"$f":"SUMPRODUCT('CSRHub Ratings'!$C22:$N22,'SDG Mapping'!$C$16:$N$16)","v":58.632000000000005},{"$f":"SUMPRODUCT('CSRHub Ratings'!$C22:$N22,'SDG Mapping'!$C$17:$N$17)","v":57.353333333333339},{"$f":"SUMPRODUCT('CSRHub Ratings'!$C22:$N22,'SDG Mapping'!$C$18:$N$18)","v":57.15},{"$f":"SUMPRODUCT('CSRHub Ratings'!$C22:$N22,'SDG Mapping'!$C$19:$N$19)","v":57.994999999999997},{"$f":"SUMPRODUCT('CSRHub Ratings'!$C22:$N22,'SDG Mapping'!$C$20:$N$20)","v":59.84},{"$f":"SUMPRODUCT('CSRHub Ratings'!$C22:$N22,'SDG Mapping'!$C$21:$N$21)","v":60.25},{"$f":"SUMPRODUCT('CSRHub Ratings'!$C22:$N22,'SDG Mapping'!$C$22:$N$22)","v":58.14},{"$f":"SUMPRODUCT('CSRHub Ratings'!$C22:$N22,'SDG Mapping'!$C$23:$N$23)","v":60.507499999999993},{"$f":"SUMPRODUCT('CSRHub Ratings'!$C22:$N22,'SDG Mapping'!$C$24:$N$24)","v":57.528571428571425},{"$f":"SUMPRODUCT('CSRHub Ratings'!$C22:$N22,'SDG Mapping'!$C$25:$N$25)","v":60.536666666666662},{"$f":"SUMPRODUCT('CSRHub Ratings'!$C22:$N22,'SDG Mapping'!$C$26:$N$26)","v":60.875000000000007},{"$f":"SUMPRODUCT('CSRHub Ratings'!$C22:$N22,'SDG Mapping'!$C$27:$N$27)","v":60.17},{"$f":"SUMPRODUCT('CSRHub Ratings'!$C22:$N22,'SDG Mapping'!$C$28:$N$28)","v":62.019999999999996},{"$f":"SUMPRODUCT('CSRHub Ratings'!$C22:$N22,'SDG Mapping'!$C$29:$N$29)","v":60.905999999999999},{"$f":"SUMPRODUCT('CSRHub Ratings'!$C22:$N22,'SDG Mapping'!$C$30:$N$30)","v":57.258333333333326},{"$f":"SUMPRODUCT('CSRHub Ratings'!$C22:$N22,'SDG Mapping'!$C$31:$N$31)","v":59.52600000000001}]
[{"$f":"'CSRHub Ratings'!B23","v":"Unilever PLC"},{"$f":"SUMPRODUCT('CSRHub Ratings'!$C23:$N23,'SDG Mapping'!$C$15:$N$15)","v":58.749999999999993},{"$f":"SUMPRODUCT('CSRHub Ratings'!$C23:$N23,'SDG Mapping'!$C$16:$N$16)","v":61.45},{"$f":"SUMPRODUCT('CSRHub Ratings'!$C23:$N23,'SDG Mapping'!$C$17:$N$17)","v":60.433333333333337},{"$f":"SUMPRODUCT('CSRHub Ratings'!$C23:$N23,'SDG Mapping'!$C$18:$N$18)","v":59.61},{"$f":"SUMPRODUCT('CSRHub Ratings'!$C23:$N23,'SDG Mapping'!$C$19:$N$19)","v":58.51166666666667},{"$f":"SUMPRODUCT('CSRHub Ratings'!$C23:$N23,'SDG Mapping'!$C$20:$N$20)","v":61.977499999999999},{"$f":"SUMPRODUCT('CSRHub Ratings'!$C23:$N23,'SDG Mapping'!$C$21:$N$21)","v":62.607500000000002},{"$f":"SUMPRODUCT('CSRHub Ratings'!$C23:$N23,'SDG Mapping'!$C$22:$N$22)","v":58.56},{"$f":"SUMPRODUCT('CSRHub Ratings'!$C23:$N23,'SDG Mapping'!$C$23:$N$23)","v":63.123750000000001},{"$f":"SUMPRODUCT('CSRHub Ratings'!$C23:$N23,'SDG Mapping'!$C$24:$N$24)","v":58.847142857142849},{"$f":"SUMPRODUCT('CSRHub Ratings'!$C23:$N23,'SDG Mapping'!$C$25:$N$25)","v":62.701666666666661},{"$f":"SUMPRODUCT('CSRHub Ratings'!$C23:$N23,'SDG Mapping'!$C$26:$N$26)","v":62.97},{"$f":"SUMPRODUCT('CSRHub Ratings'!$C23:$N23,'SDG Mapping'!$C$27:$N$27)","v":61.272857142857134},{"$f":"SUMPRODUCT('CSRHub Ratings'!$C23:$N23,'SDG Mapping'!$C$28:$N$28)","v":63.545000000000002},{"$f":"SUMPRODUCT('CSRHub Ratings'!$C23:$N23,'SDG Mapping'!$C$29:$N$29)","v":61.866},{"$f":"SUMPRODUCT('CSRHub Ratings'!$C23:$N23,'SDG Mapping'!$C$30:$N$30)","v":58.148333333333326},{"$f":"SUMPRODUCT('CSRHub Ratings'!$C23:$N23,'SDG Mapping'!$C$31:$N$31)","v":60.681999999999995}]
[{"$f":"'CSRHub Ratings'!B24","v":"Church & Dwight Co., Inc."},{"$f":"SUMPRODUCT('CSRHub Ratings'!$C24:$N24,'SDG Mapping'!$C$15:$N$15)","v":53.757142857142853},{"$f":"SUMPRODUCT('CSRHub Ratings'!$C24:$N24,'SDG Mapping'!$C$16:$N$16)","v":58.774000000000008},{"$f":"SUMPRODUCT('CSRHub Ratings'!$C24:$N24,'SDG Mapping'!$C$17:$N$17)","v":54.523333333333326},{"$f":"SUMPRODUCT('CSRHub Ratings'!$C24:$N24,'SDG Mapping'!$C$18:$N$18)","v":51.212500000000006},{"$f":"SUMPRODUCT('CSRHub Ratings'!$C24:$N24,'SDG Mapping'!$C$19:$N$19)","v":51.708333333333329},{"$f":"SUMPRODUCT('CSRHub Ratings'!$C24:$N24,'SDG Mapping'!$C$20:$N$20)","v":60.1875},{"$f":"SUMPRODUCT('CSRHub Ratings'!$C24:$N24,'SDG Mapping'!$C$21:$N$21)","v":57.844999999999999},{"$f":"SUMPRODUCT('CSRHub Ratings'!$C24:$N24,'SDG Mapping'!$C$22:$N$22)","v":50.466000000000001},{"$f":"SUMPRODUCT('CSRHub Ratings'!$C24:$N24,'SDG Mapping'!$C$23:$N$23)","v":59.160000000000011},{"$f":"SUMPRODUCT('CSRHub Ratings'!$C24:$N24,'SDG Mapping'!$C$24:$N$24)","v":53.269999999999996},{"$f":"SUMPRODUCT('CSRHub Ratings'!$C24:$N24,'SDG Mapping'!$C$25:$N$25)","v":60.186666666666667},{"$f":"SUMPRODUCT('CSRHub Ratings'!$C24:$N24,'SDG Mapping'!$C$26:$N$26)","v":60.999999999999993},{"$f":"SUMPRODUCT('CSRHub Ratings'!$C24:$N24,'SDG Mapping'!$C$27:$N$27)","v":56.864285714285707},{"$f":"SUMPRODUCT('CSRHub Ratings'!$C24:$N24,'SDG Mapping'!$C$28:$N$28)","v":62.357500000000002},{"$f":"SUMPRODUCT('CSRHub Ratings'!$C24:$N24,'SDG Mapping'!$C$29:$N$29)","v":60.758000000000003},{"$f":"SUMPRODUCT('CSRHub Ratings'!$C24:$N24,'SDG Mapping'!$C$30:$N$30)","v":52.908333333333331},{"$f":"SUMPRODUCT('CSRHub Ratings'!$C24:$N24,'SDG Mapping'!$C$31:$N$31)","v":57.036000000000001}]
[{"$f":"'CSRHub Ratings'!B25","v":"Edgewell Personal Care Company"},{"$f":"SUMPRODUCT('CSRHub Ratings'!$C25:$N25,'SDG Mapping'!$C$15:$N$15)","v":52.161428571428566},{"$f":"SUMPRODUCT('CSRHub Ratings'!$C25:$N25,'SDG Mapping'!$C$16:$N$16)","v":54.45},{"$f":"SUMPRODUCT('CSRHub Ratings'!$C25:$N25,'SDG Mapping'!$C$17:$N$17)","v":54.43666666666666},{"$f":"SUMPRODUCT('CSRHub Ratings'!$C25:$N25,'SDG Mapping'!$C$18:$N$18)","v":52.685000000000002},{"$f":"SUMPRODUCT('CSRHub Ratings'!$C25:$N25,'SDG Mapping'!$C$19:$N$19)","v":52.864999999999995},{"$f":"SUMPRODUCT('CSRHub Ratings'!$C25:$N25,'SDG Mapping'!$C$20:$N$20)","v":53.6175},{"$f":"SUMPRODUCT('CSRHub Ratings'!$C25:$N25,'SDG Mapping'!$C$21:$N$21)","v":55.287500000000001},{"$f":"SUMPRODUCT('CSRHub Ratings'!$C25:$N25,'SDG Mapping'!$C$22:$N$22)","v":50.316000000000003},{"$f":"SUMPRODUCT('CSRHub Ratings'!$C25:$N25,'SDG Mapping'!$C$23:$N$23)","v":55.895000000000003},{"$f":"SUMPRODUCT('CSRHub Ratings'!$C25:$N25,'SDG Mapping'!$C$24:$N$24)","v":52.48571428571428},{"$f":"SUMPRODUCT('CSRHub Ratings'!$C25:$N25,'SDG Mapping'!$C$25:$N$25)","v":54.524999999999991},{"$f":"SUMPRODUCT('CSRHub Ratings'!$C25:$N25,'SDG Mapping'!$C$26:$N$26)","v":55.995000000000005},{"$f":"SUMPRODUCT('CSRHub Ratings'!$C25:$N25,'SDG Mapping'!$C$27:$N$27)","v":55.594285714285711},{"$f":"SUMPRODUCT('CSRHub Ratings'!$C25:$N25,'SDG Mapping'!$C$28:$N$28)","v":55.614999999999995},{"$f":"SUMPRODUCT('CSRHub Ratings'!$C25:$N25,'SDG Mapping'!$C$29:$N$29)","v":55.362000000000009},{"$f":"SUMPRODUCT('CSRHub Ratings'!$C25:$N25,'SDG Mapping'!$C$30:$N$30)","v":51.691666666666663},{"$f":"SUMPRODUCT('CSRHub Ratings'!$C25:$N25,'SDG Mapping'!$C$31:$N$31)","v":54.635000000000005}]
[{"$f":"'CSRHub Ratings'!B26","v":"BIC"},{"$f":"SUMPRODUCT('CSRHub Ratings'!$C26:$N26,'SDG Mapping'!$C$15:$N$15)","v":58.040000000000006},{"$f":"SUMPRODUCT('CSRHub Ratings'!$C26:$N26,'SDG Mapping'!$C$16:$N$16)","v":58.276000000000003},{"$f":"SUMPRODUCT('CSRHub Ratings'!$C26:$N26,'SDG Mapping'!$C$17:$N$17)","v":60.523333333333333},{"$f":"SUMPRODUCT('CSRHub Ratings'!$C26:$N26,'SDG Mapping'!$C$18:$N$18)","v":60.814999999999998},{"$f":"SUMPRODUCT('CSRHub Ratings'!$C26:$N26,'SDG Mapping'!$C$19:$N$19)","v":57.981666666666669},{"$f":"SUMPRODUCT('CSRHub Ratings'!$C26:$N26,'SDG Mapping'!$C$20:$N$20)","v":55.967500000000001},{"$f":"SUMPRODUCT('CSRHub Ratings'!$C26:$N26,'SDG Mapping'!$C$21:$N$21)","v":58.757499999999993},{"$f":"SUMPRODUCT('CSRHub Ratings'!$C26:$N26,'SDG Mapping'!$C$22:$N$22)","v":58.945999999999998},{"$f":"SUMPRODUCT('CSRHub Ratings'!$C26:$N26,'SDG Mapping'!$C$23:$N$23)","v":58.864999999999995},{"$f":"SUMPRODUCT('CSRHub Ratings'!$C26:$N26,'SDG Mapping'!$C$24:$N$24)","v":57.891428571428577},{"$f":"SUMPRODUCT('CSRHub Ratings'!$C26:$N26,'SDG Mapping'!$C$25:$N$25)","v":56.868333333333325},{"$f":"SUMPRODUCT('CSRHub Ratings'!$C26:$N26,'SDG Mapping'!$C$26:$N$26)","v":58.68},{"$f":"SUMPRODUCT('CSRHub Ratings'!$C26:$N26,'SDG Mapping'!$C$27:$N$27)","v":57.697142857142865},{"$f":"SUMPRODUCT('CSRHub Ratings'!$C26:$N26,'SDG Mapping'!$C$28:$N$28)","v":56.972499999999997},{"$f":"SUMPRODUCT('CSRHub Ratings'!$C26:$N26,'SDG Mapping'!$C$29:$N$29)","v":57.218000000000004},{"$f":"SUMPRODUCT('CSRHub Ratings'!$C26:$N26,'SDG Mapping'!$C$30:$N$30)","v":59.484999999999999},{"$f":"SUMPRODUCT('CSRHub Ratings'!$C26:$N26,'SDG Mapping'!$C$31:$N$31)","v":57.172000000000011}]
[{"$f":"'CSRHub Ratings'!B27","v":"Johnson & Johnson"},{"$f":"SUMPRODUCT('CSRHub Ratings'!$C27:$N27,'SDG Mapping'!$C$15:$N$15)","v":58.295714285714283},{"$f":"SUMPRODUCT('CSRHub Ratings'!$C27:$N27,'SDG Mapping'!$C$16:$N$16)","v":61.763999999999996},{"$f":"SUMPRODUCT('CSRHub Ratings'!$C27:$N27,'SDG Mapping'!$C$17:$N$17)","v":61.599999999999994},{"$f":"SUMPRODUCT('CSRHub Ratings'!$C27:$N27,'SDG Mapping'!$C$18:$N$18)","v":59.547499999999999},{"$f":"SUMPRODUCT('CSRHub Ratings'!$C27:$N27,'SDG Mapping'!$C$19:$N$19)","v":58.496666666666663},{"$f":"SUMPRODUCT('CSRHub Ratings'!$C27:$N27,'SDG Mapping'!$C$20:$N$20)","v":60.912500000000001},{"$f":"SUMPRODUCT('CSRHub Ratings'!$C27:$N27,'SDG Mapping'!$C$21:$N$21)","v":62.47},{"$f":"SUMPRODUCT('CSRHub Ratings'!$C27:$N27,'SDG Mapping'!$C$22:$N$22)","v":57.866},{"$f":"SUMPRODUCT('CSRHub Ratings'!$C27:$N27,'SDG Mapping'!$C$23:$N$23)","v":62.633749999999999},{"$f":"SUMPRODUCT('CSRHub Ratings'!$C27:$N27,'SDG Mapping'!$C$24:$N$24)","v":58.209999999999994},{"$f":"SUMPRODUCT('CSRHub Ratings'!$C27:$N27,'SDG Mapping'!$C$25:$N$25)","v":61.523333333333326},{"$f":"SUMPRODUCT('CSRHub Ratings'!$C27:$N27,'SDG Mapping'!$C$26:$N$26)","v":63.5075},{"$f":"SUMPRODUCT('CSRHub Ratings'!$C27:$N27,'SDG Mapping'!$C$27:$N$27)","v":61.007142857142853},{"$f":"SUMPRODUCT('CSRHub Ratings'!$C27:$N27,'SDG Mapping'!$C$28:$N$28)","v":63.234999999999999},{"$f":"SUMPRODUCT('CSRHub Ratings'!$C27:$N27,'SDG Mapping'!$C$29:$N$29)","v":61.858000000000011},{"$f":"SUMPRODUCT('CSRHub Ratings'!$C27:$N27,'SDG Mapping'!$C$30:$N$30)","v":58.809999999999995},{"$f":"SUMPRODUCT('CSRHub Ratings'!$C27:$N27,'SDG Mapping'!$C$31:$N$31)","v":60.39800000000001}]
[{"$f":"'CSRHub Ratings'!B28","v":"Amazon.com, Inc."},{"$f":"SUMPRODUCT('CSRHub Ratings'!$C28:$N28,'SDG Mapping'!$C$15:$N$15)","v":50.964285714285715},{"$f":"SUMPRODUCT('CSRHub Ratings'!$C28:$N28,'SDG Mapping'!$C$16:$N$16)","v":50.725999999999999},{"$f":"SUMPRODUCT('CSRHub Ratings'!$C28:$N28,'SDG Mapping'!$C$17:$N$17)","v":50.953333333333333},{"$f":"SUMPRODUCT('CSRHub Ratings'!$C28:$N28,'SDG Mapping'!$C$18:$N$18)","v":49.83},{"$f":"SUMPRODUCT('CSRHub Ratings'!$C28:$N28,'SDG Mapping'!$C$19:$N$19)","v":51.446666666666658},{"$f":"SUMPRODUCT('CSRHub Ratings'!$C28:$N28,'SDG Mapping'!$C$20:$N$20)","v":49.802500000000002},{"$f":"SUMPRODUCT('CSRHub Ratings'!$C28:$N28,'SDG Mapping'!$C$21:$N$21)","v":51.987499999999997},{"$f":"SUMPRODUCT('CSRHub Ratings'!$C28:$N28,'SDG Mapping'!$C$22:$N$22)","v":50.09},{"$f":"SUMPRODUCT('CSRHub Ratings'!$C28:$N28,'SDG Mapping'!$C$23:$N$23)","v":50.822500000000005},{"$f":"SUMPRODUCT('CSRHub Ratings'!$C28:$N28,'SDG Mapping'!$C$24:$N$24)","v":51.048571428571428},{"$f":"SUMPRODUCT('CSRHub Ratings'!$C28:$N28,'SDG Mapping'!$C$25:$N$25)","v":50.346666666666657},{"$f":"SUMPRODUCT('CSRHub Ratings'!$C28:$N28,'SDG Mapping'!$C$26:$N$26)","v":50.542499999999997},{"$f":"SUMPRODUCT('CSRHub Ratings'!$C28:$N28,'SDG Mapping'!$C$27:$N$27)","v":52.135714285714286},{"$f":"SUMPRODUCT('CSRHub Ratings'!$C28:$N28,'SDG Mapping'!$C$28:$N$28)","v":49.837499999999999},{"$f":"SUMPRODUCT('CSRHub Ratings'!$C28:$N28,'SDG Mapping'!$C$29:$N$29)","v":50.000000000000007},{"$f":"SUMPRODUCT('CSRHub Ratings'!$C28:$N28,'SDG Mapping'!$C$30:$N$30)","v":50.516666666666666},{"$f":"SUMPRODUCT('CSRHub Ratings'!$C28:$N28,'SDG Mapping'!$C$31:$N$31)","v":51.606999999999999}]
[{"$f":"'CSRHub Ratings'!B29","v":"Groupe Danone"},{"$f":"SUMPRODUCT('CSRHub Ratings'!$C29:$N29,'SDG Mapping'!$C$15:$N$15)","v":60.192857142857136},{"$f":"SUMPRODUCT('CSRHub Ratings'!$C29:$N29,'SDG Mapping'!$C$16:$N$16)","v":63.781999999999996},{"$f":"SUMPRODUCT('CSRHub Ratings'!$C29:$N29,'SDG Mapping'!$C$17:$N$17)","v":62.043333333333322},{"$f":"SUMPRODUCT('CSRHub Ratings'!$C29:$N29,'SDG Mapping'!$C$18:$N$18)","v":60.407499999999999},{"$f":"SUMPRODUCT('CSRHub Ratings'!$C29:$N29,'SDG Mapping'!$C$19:$N$19)","v":61.068333333333328},{"$f":"SUMPRODUCT('CSRHub Ratings'!$C29:$N29,'SDG Mapping'!$C$20:$N$20)","v":63.285000000000004},{"$f":"SUMPRODUCT('CSRHub Ratings'!$C29:$N29,'SDG Mapping'!$C$21:$N$21)","v":64.28},{"$f":"SUMPRODUCT('CSRHub Ratings'!$C29:$N29,'SDG Mapping'!$C$22:$N$22)","v":60.760000000000005},{"$f":"SUMPRODUCT('CSRHub Ratings'!$C29:$N29,'SDG Mapping'!$C$23:$N$23)","v":65.033749999999998},{"$f":"SUMPRODUCT('CSRHub Ratings'!$C29:$N29,'SDG Mapping'!$C$24:$N$24)","v":60.531428571428563},{"$f":"SUMPRODUCT('CSRHub Ratings'!$C29:$N29,'SDG Mapping'!$C$25:$N$25)","v":64.186666666666667},{"$f":"SUMPRODUCT('CSRHub Ratings'!$C29:$N29,'SDG Mapping'!$C$26:$N$26)","v":66.517499999999998},{"$f":"SUMPRODUCT('CSRHub Ratings'!$C29:$N29,'SDG Mapping'!$C$27:$N$27)","v":63.442857142857136},{"$f":"SUMPRODUCT('CSRHub Ratings'!$C29:$N29,'SDG Mapping'!$C$28:$N$28)","v":66.537499999999994},{"$f":"SUMPRODUCT('CSRHub Ratings'!$C29:$N29,'SDG Mapping'!$C$29:$N$29)","v":65.231999999999999},{"$f":"SUMPRODUCT('CSRHub Ratings'!$C29:$N29,'SDG Mapping'!$C$30:$N$30)","v":61.371666666666663},{"$f":"SUMPRODUCT('CSRHub Ratings'!$C29:$N29,'SDG Mapping'!$C$31:$N$31)","v":62.721000000000004}]
[{"$f":"'CSRHub Ratings'!B30","v":"Walmart Inc."},{"$f":"SUMPRODUCT('CSRHub Ratings'!$C30:$N30,'SDG Mapping'!$C$15:$N$15)","v":53.498571428571431},{"$f":"SUMPRODUCT('CSRHub Ratings'!$C30:$N30,'SDG Mapping'!$C$16:$N$16)","v":56.284000000000006},{"$f":"SUMPRODUCT('CSRHub Ratings'!$C30:$N30,'SDG Mapping'!$C$17:$N$17)","v":53.5},{"$f":"SUMPRODUCT('CSRHub Ratings'!$C30:$N30,'SDG Mapping'!$C$18:$N$18)","v":50.980000000000004},{"$f":"SUMPRODUCT('CSRHub Ratings'!$C30:$N30,'SDG Mapping'!$C$19:$N$19)","v":53.341666666666661},{"$f":"SUMPRODUCT('CSRHub Ratings'!$C30:$N30,'SDG Mapping'!$C$20:$N$20)","v":56.95},{"$f":"SUMPRODUCT('CSRHub Ratings'!$C30:$N30,'SDG Mapping'!$C$21:$N$21)","v":55.967500000000001},{"$f":"SUMPRODUCT('CSRHub Ratings'!$C30:$N30,'SDG Mapping'!$C$22:$N$22)","v":52.056000000000004},{"$f":"SUMPRODUCT('CSRHub Ratings'!$C30:$N30,'SDG Mapping'!$C$23:$N$23)","v":56.158750000000005},{"$f":"SUMPRODUCT('CSRHub Ratings'!$C30:$N30,'SDG Mapping'!$C$24:$N$24)","v":53.502857142857145},{"$f":"SUMPRODUCT('CSRHub Ratings'!$C30:$N30,'SDG Mapping'!$C$25:$N$25)","v":56.761666666666656},{"$f":"SUMPRODUCT('CSRHub Ratings'!$C30:$N30,'SDG Mapping'!$C$26:$N$26)","v":57.147500000000008},{"$f":"SUMPRODUCT('CSRHub Ratings'!$C30:$N30,'SDG Mapping'!$C$27:$N$27)","v":55.675714285714285},{"$f":"SUMPRODUCT('CSRHub Ratings'!$C30:$N30,'SDG Mapping'!$C$28:$N$28)","v":57.935000000000002},{"$f":"SUMPRODUCT('CSRHub Ratings'!$C30:$N30,'SDG Mapping'!$C$29:$N$29)","v":56.874000000000009},{"$f":"SUMPRODUCT('CSRHub Ratings'!$C30:$N30,'SDG Mapping'!$C$30:$N$30)","v":52.315000000000005},{"$f":"SUMPRODUCT('CSRHub Ratings'!$C30:$N30,'SDG Mapping'!$C$31:$N$31)","v":55.498999999999995}]
[{"$f":"'CSRHub Ratings'!B31","v":"Carrefour"},{"$f":"SUMPRODUCT('CSRHub Ratings'!$C31:$N31,'SDG Mapping'!$C$15:$N$15)","v":58.85714285714284},{"$f":"SUMPRODUCT('CSRHub Ratings'!$C31:$N31,'SDG Mapping'!$C$16:$N$16)","v":61.658000000000001},{"$f":"SUMPRODUCT('CSRHub Ratings'!$C31:$N31,'SDG Mapping'!$C$17:$N$17)","v":59.523333333333326},{"$f":"SUMPRODUCT('CSRHub Ratings'!$C31:$N31,'SDG Mapping'!$C$18:$N$18)","v":58.064999999999998},{"$f":"SUMPRODUCT('CSRHub Ratings'!$C31:$N31,'SDG Mapping'!$C$19:$N$19)","v":58.376666666666658},{"$f":"SUMPRODUCT('CSRHub Ratings'!$C31:$N31,'SDG Mapping'!$C$20:$N$20)","v":61.197500000000005},{"$f":"SUMPRODUCT('CSRHub Ratings'!$C31:$N31,'SDG Mapping'!$C$21:$N$21)","v":59.354999999999997},{"$f":"SUMPRODUCT('CSRHub Ratings'!$C31:$N31,'SDG Mapping'!$C$22:$N$22)","v":59.891999999999996},{"$f":"SUMPRODUCT('CSRHub Ratings'!$C31:$N31,'SDG Mapping'!$C$23:$N$23)","v":60.837499999999999},{"$f":"SUMPRODUCT('CSRHub Ratings'!$C31:$N31,'SDG Mapping'!$C$24:$N$24)","v":58.715714285714277},{"$f":"SUMPRODUCT('CSRHub Ratings'!$C31:$N31,'SDG Mapping'!$C$25:$N$25)","v":60.844999999999999},{"$f":"SUMPRODUCT('CSRHub Ratings'!$C31:$N31,'SDG Mapping'!$C$26:$N$26)","v":62.917499999999997},{"$f":"SUMPRODUCT('CSRHub Ratings'!$C31:$N31,'SDG Mapping'!$C$27:$N$27)","v":58.267142857142851},{"$f":"SUMPRODUCT('CSRHub Ratings'!$C31:$N31,'SDG Mapping'!$C$28:$N$28)","v":62.8675},{"$f":"SUMPRODUCT('CSRHub Ratings'!$C31:$N31,'SDG Mapping'!$C$29:$N$29)","v":61.538000000000004},{"$f":"SUMPRODUCT('CSRHub Ratings'!$C31:$N31,'SDG Mapping'!$C$30:$N$30)","v":59.123333333333328},{"$f":"SUMPRODUCT('CSRHub Ratings'!$C31:$N31,'SDG Mapping'!$C$31:$N$31)","v":58.575000000000003}]
[{"$f":"'CSRHub Ratings'!B32","v":0}]
[{"$f":"'CSRHub Ratings'!B33","v":0}]
[{"$f":"'CSRHub Ratings'!B34","v":0}]

{"sheet":"SDG Mapping","index":4,"n_rows":31,"n_cols":14,"rows_kept":31,"cut":false,"hidden":false,"merged":[[6,0,6,1],[7,0,9,1],[10,0,10,1]]}
[]
[]
[]
[]
[]
[]
["CSRHub SDG Mapping"]
["Below is a mapping of CSRHub data to the SDGs. The model was developed by our partner Valutus, under the title \"Materiality Matters.\" You can learn more about Valutus and its work here https://valutus.com/."]
[]
[]
["You can request a custom mapping via this form."]
[]
[]
["SDG #","SDG Description","Community Dev & Philanthropy","Human Rights & Supply Chain","Product","Compensation & Benefits","Diversity & Labor Rights","Training, Health & Safety","Energy & Climate Change","Environment Policy & Reporting","Resource Management","Board","Leadership Ethics","Transparency & Reporting"]
[1,"End poverty in all its forms everywhere",0.2857142857142857,null,0.2857142857142857,0.2857142857142857,null,null,null,null,null,null,0.14285714285714285]
[2,"End hunger, achieve food security and improved nutrition and promote sustainable agriculture",0.2,0.4,0.2,null,null,null,null,null,0.2]
[3,"Ensure healthy lives and promote well-being for all at all ages",0.33333333333333331,0.33333333333333331,null,null,null,0.33333333333333331]
[4,"Ensure inclusive and equitable quality education and promote lifelong learning opportunities for all",0.25,null,null,null,0.25,0.5]
[5,"Achieve gender equality and empower all women and girls",null,null,0.16666666666666666,null,0.33333333333333331,null,null,null,null,0.33333333333333331,0.16666666666666666]
[6,"Ensure availability and sustainable management of water and sanitation for all",0.25,null,0.25,null,null,null,null,null,0.5]
[7,"Ensure access to affordable, reliable, sustainable and modern energy for all",0.25,null,null,null,null,null,0.5,0.25]
[8,"Promote sustained, inclusive and sustainable economic growth, full and productive employment and decent work for all",null,null,0.2,0.4,0.4]
[9,"Build resilient infrastructure, promote inclusive and sustainable industrialization and foster innovation",null,0.25,null,null,null,0.125,0.25,0.25,0.125]
[10,"Reduce inequality within and among countries",0.14285714285714285,null,0.2857142857142857,0.14285714285714285,0.14285714285714285,null,null,null,null,0.14285714285714285,0.14285714285714285]
[11,"Make cities and human settlements inclusive, safe, resilient and sustainable",0.16666666666666666,null,0.16666666666666666,null,null,null,0.16666666666666666,0.16666666666666666,0.33333333333333331]
[12,"Ensure sustainable consumption and production patterns",null,0.5,null,null,null,null,null,0.25,0.25]
[13,"Take urgent action to combat climate change and its impacts",null,null,null,null,null,null,0.2857142857142857,0.2857142857142857,null,0.14285714285714285,0.14285714285714285,0.14285714285714285]
[14,"Conserve and sustainably use the oceans, seas and marine resources for sustainable development",null,0.25,null,null,null,null,null,0.25,0.5]
[15,"Protect, restore and promote sustainable use of terrestrial ecosystems, sustainably manage forests, combat desertification, and halt and reverse land degradation and halt biodiversity loss",null,0.2,null,null,null,null,null,0.2,0.4,null,0.2]
[16,"Promote peaceful and inclusive societies for sustainable development, provide access to justice for all and build effective, accountable and inclusive institutions at all levels",0.33333333333333331,null,0.16666666666666666,null,0.33333333333333331,null,null,null,null,null,0.16666666666666666]
[17,"Strengthen the means of implementation and revitalize the global partnership for sustainable development",0.1,null,0.1,null,null,null,0.1,0.2,0.1,0.1,0.1,0.2]